Cogmind - Beta 15 @@@ ROGUE MODE // 2025.06.19 @ 20:04:13 Player: KN-OKO Result: Destroyed by G-50 Soldier with Heavy Laser Performance ------------- Evolutions (5) 2500 Regions Visited (4) 800 Robots Destroyed (63) 315 Value Destroyed (2595) 2595 Prototype IDs (11) 220 Alien Tech Used (0) 0 Bonus (1018) 1018 TOTAL SCORE: 7448 Bonus ------- High Alert Combat Kills 218 Registered with UFD 300 Met Optimus in HQ 500 Cogmind --------- Core Integrity 0/1000 Matter 300/300 Energy 40/100 System Corruption 5% Temperature Hot (207) Movement Core (50) Location -5/Factory Parts ------- > --- POWER (2) -------- (None) > --- PROPULSION (6) --- Carbon-fiber Leg > --- UTILITY (6) ------ A0-MCA's Component Scanner > --- WEAPON (3) ------- (None) > --- INVENTORY (5) ---- Seismic Detector Authchip [Propulsion] Long-range Proton Cannon Heavy Phase Cannon Plasma Sword Peak State ------------ > --- POWER ------------ Light Angular Momentum Engine Light Antimatter Reactor > --- PROPULSION ------- Carbon-fiber Leg Titanium Leg Titanium Leg Titanium Leg Titanium Leg Thunder Leg > --- UTILITY ---------- Advanced Cooling System Advanced Cooling System Large Storage Unit Improved Medium Armor Plating Improved Hacking Suite A0-MCA's Component Scanner > --- WEAPON ----------- Heavy Laser Plasma Rifle Beamcaster > --- INVENTORY -------- Carbon-fiber Leg Thunder Leg Thunder Leg Thunder Leg High-capacity Matter Pod Seismic Detector Improved Medium Armor Plating Improved Force Field Authchip [Propulsion] Plasma Rifle Variable Charge Gun Long-range Proton Cannon KE Penetrator Mass Driver Makeshift Axe [Rating: 85] Favorites ----------- Power Ion Engine Engine Ion Engine Power Core Fission Core Reactor Light Antimatter Reactor Propulsion Light Treads Treads Light Treads Leg Titanium Leg Utility Large Storage Unit Device Seismic Detector Storage Large Storage Unit Processor A0-MCA's Component Scanner Hackware Improved Hacking Suite Protection Improved Medium Armor Plating Weapon Assault Rifle Energy Gun Heavy Laser Energy Cannon Heavy Phase Cannon Ballistic Gun Assault Rifle Ballistic Cannon Mass Driver Impact Weapon Hammer Slashing Weapon Makeshift Axe Build | -11 -10 -10 -7 -5 ------- Run | Yrd Mat Sub Scr Fac Slots Evolved 10 | . . . . 10 Power 1 | . . . . 1 Propulsion 4 | . . . . 4 Utility 4 | . . . . 4 Weapon 1 | . . . . 1 Parts Attached 63 | 6 6 . 4 47 Power 9 | 1 1 . 1 6 Engine 7 | 1 1 . 1 4 Core 1 | . . . . 1 Reactor 1 | . . . . 1 Propulsion 16 | 2 . . . 14 Treads 3 | 2 . . . 1 Leg 13 | . . . . 13 Wheel . | . . . . . Hover . | . . . . . Flight . | . . . . . Utility 18 | 1 3 . 1 13 Device 7 | . 2 . 1 4 Storage 4 | 1 1 . . 2 Processor 2 | . . . . 2 Hackware 1 | . . . . 1 Protection 4 | . . . . 4 Artifact . | . . . . . Weapon 20 | 2 2 . 2 14 Energy Gun 7 | 1 1 . . 5 Energy Cannon 2 | . . . . 2 Ballistic Gun 7 | 1 . . 2 4 Ballistic Cannon 1 | . . . . 1 Launcher . | . . . . . Special Weapon . | . . . . . Impact Weapon 1 | . 1 . . . Slashing Weapon 2 | . . . . 2 Piercing Weapon . | . . . . . Special Melee Weapon . | . . . . . Unidentified Prototypes . | . . . . . Parts Lost 31 | . . . . 31 Power 4 | . . . . 4 Propulsion 13 | . . . . 13 Utility 6 | . . . . 6 Weapon 8 | . . . . 8 Highest Loss Streak 19 | . . . . 19 To Critical Strikes 2 | . . . . 2 Average Backups 12 | 2 9 12 13 13 Power . | . 1 1 1 . Propulsion 3 | 1 3 5 4 3 Utility 3 | . 1 2 4 4 Weapon 4 | . 3 4 3 5 Tool/Special . | . . . . . Unused Backups 24 | . 3 . 13 8 Power 1 | . . . 1 . Propulsion 11 | . . . 9 2 Utility 3 | . 1 . . 2 Weapon 9 | . 2 . 3 4 Tool/Special . | . . . . . Average Slot Usage (%) 94 | . 90 100 100 92 Engine 10 | . 14 14 14 5 Treads 18 | . 27 28 28 3 Leg 11 | . . . . 28 Device 10 | . 5 14 14 9 Storage 10 | . 14 14 14 5 Processor 1 | . . . . 5 Hackware 1 | . . . . 4 Protection 1 | . . . . 4 Energy Gun 7 | . 12 11 . 8 Ballistic Gun 14 | . 14 14 27 4 Peak Build Rating 85 | 6 8 8 18 85 Average Rating 32 | 4 7 8 12 70 On Entrance 8 | . 6 8 8 18 Naked Turns . | . . . . . Heaviest Build 66 | 14 30 30 36 66 Greatest Support 106 | 40 40 40 40 106 Greatest Overweight (x) 3 | 3 . . . 1 Average Overweight (x) . | . . . . . Largest Inventory Capacity 15 | 8 15 15 15 15 Average Capacity 14 | 7 12 15 15 14 Most Carried 15 | 4 13 12 15 15 Average Carried 12 | 2 9 12 14 13 Final Capacity 15 | 8 15 15 15 5 Final Carried 15 | 4 12 12 15 5 Class Distribution -------------------- 65% | Mutant 19% | Scavenger-Tank 8% | Tank 6% | Scavenger-Mutant Dominant Class ---------------- Mutant | -10/Materials Mutant | -10/Subcaves Mutant | -7/Scraptown Scavenger-Tank | -5/Factory Resources | -11 -10 -10 -7 -5 ----------- Run | Yrd Mat Sub Scr Fac Matter Collected 1964 | 252 386 36 50 1240 Remotely . | . . . . . Salvage Created 3018 | 30 399 . 119 2470 Parts 115 | 1 19 . 3 92 Haulers Intercepted 2 | . 1 . . 1 Recyclers Shooed 3 | . . . . 3 Parts Field Recycled . | . . . . . Retrieved Matter . | . . . . . Parts Self-Destructed 3 | . . 3 . . Prevented . | . . . . . Kills | -11 -10 -10 -7 -5 ------- Run | Yrd Mat Sub Scr Fac Combat Hostiles Destroyed 44 | . 8 . 2 34 Melee 2 | . . . . 2 Guns 31 | . 8 . 2 21 Cannons 3 | . . . . 3 Classes Destroyed 14 | 1 3 . 1 9 Worker 3 | . . . . 3 Builder 8 | . 1 . . 7 Tunneler 2 | 1 . . . 1 Hauler 2 | . 1 . . 1 Recycler 2 | . . . . 2 Mechanic 1 | . . . . 1 Operator 1 | . . . . 1 Saboteur 1 | . . . . 1 Grunt 28 | . 8 . . 20 Brawler 1 | . . . . 1 Duelist 1 | . . . . 1 Hunter 7 | . . . . 7 Programmer 4 | . . . . 4 Explorer 1 | . . . 1 . Thug 1 | . . . 1 . Best Kill Streak 13 | 1 2 . 2 13 Combat Bots Only 8 | . 2 . 2 8 Max Kills in Single Turn 5 | 1 1 . 1 5 Gunslinging . | . . . . . Exploded . | . . . . . Melee 1 | . . . . 1 Uniques/NPCs Destroyed . | . . . . . Combat | -11 -10 -10 -7 -5 -------- Run | Yrd Mat Sub Scr Fac Hostile Shots Fired 470 | . 39 . . 431 Missed 100 | . 7 . . 93 Hits 370 | . 32 . . 338 Projectile 370 | . 32 . . 338 Critical Strikes 20 | . 1 . . 19 Part Disruptions 1 | . . . . 1 Damage Taken 6367 | . 427 . . 5940 Core 1052 | . 35 . . 1017 Absorbed by Shields . | . . . . . Reduced by Siege Mode 113 | . . . . 113 Regen/Repaired (Parts) 103 | . 103 . . . Core Remaining (%) 93 | 100 . . 86 . Volleys Fired 150 | 1 36 . 2 111 Largest 3 | 2 2 . 2 3 Hottest 219 | 70 70 . 48 219 Shots Fired 373 | 2 73 . 4 294 Gun 338 | 2 73 . 4 259 Cannon 35 | . . . . 35 Launcher . | . . . . . Special . | . . . . . Kinetic 178 | 1 37 . 4 136 Thermal 195 | 1 36 . . 158 Explosive . | . . . . . Electromagnetic . | . . . . . Robot Hit Streak 23 | 1 12 . 5 23 Robot Miss Streak 4 | 1 4 . . 3 Penetration Max 1 | . . . . 1 Secondary Targets 9 | . . . . 9 Max Gunslinging Chain 1 | . . . . 1 Shots Hit Robots 284 | 1 54 . 2 227 Core Hits 122 | 1 18 . 2 101 Critical Kills 3 | . 1 . . 2 Critical Parts Destroyed 3 | . . . . 3 Critical Strikes 21 | . 6 . . 15 Burn 12 | . 5 . . 7 Destroy 6 | . 1 . . 5 Blast 2 | . . . . 2 Sever 1 | . . . . 1 Melee Attacks 31 | . 5 3 . 23 Impact 8 | . 5 3 . . Slashing 23 | . . . . 23 Piercing . | . . . . . Sneak Attacks 5 | . 1 . . 4 Combat Hostiles . | . . . . . Follow-up Attacks . | . . . . . Damage Inflicted 6884 | 15 683 . 14 6172 Guns 5288 | 15 637 . 14 4622 Cannons 545 | . . . . 545 Explosions 502 | . . . . 502 Melee 544 | . 46 . . 498 Ramming 5 | . . . . 5 Kinetic 2671 | 15 309 . 14 2333 Thermal 3224 | . 328 . . 2896 Explosive 440 | . . . . 440 Electromagnetic . | . . . . . Impact 46 | . 46 . . . Slashing 498 | . . . . 498 Piercing . | . . . . . Highest Corruption 5 | . 1 1 . 5 Average Corruption 3 | . 1 1 . 4 Corruption Purged 5 | . . . . 5 Corruption Blocked . | . . . . . Effects 32 | . 4 1 . 27 Message Errors 7 | . 1 . . 6 Matter Fused 6 | . . . . 6 Heat Flow Errors 5 | . 1 . . 4 Energy Discharges 5 | . . . . 5 Data Loss (minor) 3 | . 1 1 . 1 Misfires 3 | . 1 . . 2 Alerts 1 | . . . . 1 Weapon Failures 2 | . . . . 2 Overload Shots . | . . . . . Overflow Damage 91 | . . . . 91 Projectiles . | . . . . . Explosions 20 | . . . . 20 Melee 71 | . . . . 71 Knockbacks 9 | . . . . 9 Impact . | . . . . . Kinetic 7 | . . . . 7 Secondary 2 | . . . . 2 Self-Inflicted Damage . | . . . . . Shots . | . . . . . Rammed . | . . . . . Targets Rammed 1 | . . . . 1 Kicked 1 | . . . . 1 Crushed . | . . . . . Highest Temperature 288 | 9 175 . 8 288 Average Temperature 69 | 6 65 . 6 83 Received Heat Transfer 1659 | . 237 . . 1422 Siege Activations 1 | . . . . 1 Total Turns 47 | . . . . 47 Longest Duration 47 | . . . . 47 Martial Activations . | . . . . . Shielding Activations . | . . . . . Robots Disrupted . | . . . . . Combat Hostiles . | . . . . . Robots Corrupted . | . . . . . Combat Hostiles . | . . . . . Parts Fried . | . . . . . Impact Corruptions . | . . . . . Robots Melted 8 | . . . . 8 Combat Hostiles 8 | . . . . 8 Parts Melted 30 | . 4 . . 26 Heat Transferred 7564 | . 1332 . . 6232 Parts Sabotaged . | . . . . . Parts Stolen . | . . . . . Parts Stripped . | . . . . . Power Chain Reactions 1 | . . . . 1 Alert | -11 -10 -10 -7 -5 ------- Run | Yrd Mat Sub Scr Fac Maximum Alert Level 3 | . . . . 3 Low Security (%) 75 | 100 100 . . 59 Level 1 13 | . . . . 22 Level 2 10 | . . . . 16 Level 3 . | . . . . 1 Level 4 . | . . . . . Level 5 . | . . . . . High Security . | . . . . . Max Security . | . . . . . Peak Influence 753 | 5 91 . . 753 Initial . | . . . . . Average 133 | . 20 . . 209 Influence Increases 1628 | 5 255 . . 1368 Destroy 0b10 Robot/C 840 | . 160 . . 680 Destroy 0b10 Robot/NC 95 | 5 10 . . 80 Destroy Leader 174 | . 52 . . 122 Successful Hack 46 | . 15 . . 31 Select Force Hacks 50 | . . . . 50 Disable Machine 240 | . . . . 240 Destroy Structure 123 | . 3 . . 120 Lose Combat Pursuer 60 | . 15 . . 45 Influence Decreases 988 | 5 255 . . 728 Time Decay 678 | 5 255 . . 418 Lost Part 310 | . . . . 310 Squads Dispatched 14 | . 4 . . 10 Investigation 5 | . 3 . . 2 Extermination 3 | . . . . 3 Reinforcement 4 | . 1 . . 3 Assault 2 | . . . . 2 Garrison . | . . . . . Intercept . | . . . . . Searches Triggered . | . . . . . Construction Impeded 1 | . . . . 1 Haulers Reinforced 1 | . . . . 1 Active Scanning Responses . | . . . . . Cargo Convoy Interrupts . | . . . . . Stealth | -11 -10 -10 -7 -5 --------- Run | Yrd Mat Sub Scr Fac Distress Signals 4 | . . . . 4 Communications Jammed . | . . . . . Distress Signals . | . . . . . Times Spotted 79 | . 15 . 3 61 Peak Tracking Total 12 | . 3 . 2 12 Tactical Retreats 3 | . 1 . . 2 Traps | -11 -10 -10 -7 -5 ------- Run | Yrd Mat Sub Scr Fac Traps Triggered 6 | . 4 . . 2 Indirectly . | . . . . . Trap Hack Attempts . | . . . . . Triggered . | . . . . . Disarmed . | . . . . . Reprogrammed . | . . . . . Reused . | . . . . . Traps Extracted . | . . . . . Installed . | . . . . . Triggered . | . . . . . Machines | -11 -10 -10 -7 -5 ---------- Run | Yrd Mat Sub Scr Fac Machines Disabled 16 | . . . . 16 Max in Single Turn 9 | . . . . 9 Machines Repaired . | . . . . . Machines Dismantled . | . . . . . Machines Sabotaged . | . . . . . Overloaded Fab Kills . | . . . . . Hacking | -11 -10 -10 -7 -5 --------- Run | Yrd Mat Sub Scr Fac Machines Accessed 13 | . 6 . 1 6 Terminals 8 | . 5 . . 3 Fabricators 2 | . . . . 2 Repair Stations 1 | . 1 . . . Recycling Units 1 | . . . . 1 Scanalyzers . | . . . . . Garrison Access . | . . . . . Total Hacks 36 | . 21 . 3 12 Successful 23 | . 15 . 3 5 Failed 13 | . 6 . . 7 Catastrophic 2 | . 1 . . 1 Database Lockouts . | . . . . . Manual 26 | . 18 . . 8 Terminals 26 | . 19 . . 7 Fabricators 4 | . . . . 4 Repair Stations 2 | . 2 . . . Recycling Units 1 | . . . . 1 Scanalyzers . | . . . . . Garrison Access . | . . . . . Terminal Hacks 8 | . 5 . 3 . Record 3 | . . . 3 . Robot Analysis 1 | . 1 . . . Prototype ID Bank 4 | . 4 . . . Fabricator Hacks 1 | . . . . 1 Network Status 1 | . . . . 1 Repair Station Hacks 2 | . 2 . . . Scan Component 1 | . 1 . . . Repair 1 | . 1 . . . Recycling Unit Hacks . | . . . . . Scanalyzer . | . . . . . Garrison Access Hacks . | . . . . . Unauthorized Hacks 12 | . 8 . . 4 Terminals 10 | . 8 . . 2 Botnet 6 | . 4 . . 2 Skim 4 | . 4 . . . Fabricators 1 | . . . . 1 Overload 1 | . . . . 1 Repair Stations . | . . . . . Recycling Units 1 | . . . . 1 Fedlink 1 | . . . . 1 Scanalyzers . | . . . . . Garrison Access . | . . . . . Data Cores Recovered 1 | . . . . 1 Used 1 | . . . . 1 Hacking Detections 9 | . 5 . . 4 Full Trace Events . | . . . . . Feedback Events . | . . . . . Feedback Blocked . | . . . . . Robot Schematics Acquired . | . . . . . Robots Built . | . . . . . Authchips . | . . . . . Time . | . . . . . Total Robot Build Rating . | . . . . . Part Schematics Acquired . | . . . . . Parts Built . | . . . . . Authchips . | . . . . . Time . | . . . . . Total Part Build Rating . | . . . . . Parts Repaired 1 | . 1 . . . Time 26 | . 26 . . . Parts Recycled . | . . . . . Recycled Matter . | . . . . . Retrieved Matter . | . . . . . Retrieved Components . | . . . . . Parts Scanalyzed . | . . . . . Part Schematics Acquired . | . . . . . Parts Damaged . | . . . . . Bothacking | -11 -10 -10 -7 -5 ------------ Run | Yrd Mat Sub Scr Fac Used RIF Installer . | . . . . . Robots Hacked . | . . . . . Non-combat . | . . . . . Combat . | . . . . . Robot Hacks Applied . | . . . . . Relay Couplers Released . | . . . . . Fabnet Peak Effective % . | . . . . . Robots Rewired . | . . . . . Allies Hacked . | . . . . . Hacks Repelled . | . . . . . Allies | -11 -10 -10 -7 -5 -------- Run | Yrd Mat Sub Scr Fac Total Allies . | . . . . . Largest Group . | . . . . . Highest-Rated Group . | . . . . . Highest-Rated Ally . | . . . . . Total Orders . | . . . . . Ally Attacks . | . . . . . Total Damage . | . . . . . Kills . | . . . . . Allies Corrupted . | . . . . . Allies Melted 1 | . . . 1 . Intel | -11 -10 -10 -7 -5 ------- Run | Yrd Mat Sub Scr Fac Active Infowar (turns) 2217 | . . . 1331 886 Seismic 2217 | . . . 1331 886 Robot Analysis Total 1 | . 1 . . . Derelict Logs Recovered . | . . . . . Drone Launches . | . . . . . Drone Recoveries . | . . . . . Exploration | -11 -10 -10 -7 -5 ------------- Run | Yrd Mat Sub Scr Fac Turns Passed 4424 | 89 1029 221 1385 1700 Spaces Moved 2316 | 48 511 123 842 792 Core 7 | 7 . . . . Treads 1552 | 41 511 123 842 35 Legs 757 | . . . . 757 Wheels . | . . . . . Hover . | . . . . . Flight . | . . . . . Fastest Speed 50 | 50 160 160 160 120 Average Speed 149 | 153 160 160 160 130 Slowest Speed 200 | 200 160 160 160 190 Overloaded Moves . | . . . . . Propulsion Burnouts . | . . . . . Robots Hopped . | . . . . . Potential Cave-ins . | . . . . . Cave-ins Triggered . | . . . . . Exploration Rate (%) 37 | 4 87 7 70 21 Regions Visited 4 Branch Regions 2 Pre-discovered Areas . | . . . . . Known Exits Taken . | . . . . . Unknown Exits Taken 4 | 1 1 1 1 . Scrap Searched 7 | . . . 7 . Spaces Dug 25 | . 2 3 . 20 Terrain Destroyed 64 | . 2 3 . 59 Melee 18 | . 2 3 . 13 Projectile 18 | . . . . 18 AOE 28 | . . . . 28 Terrain Rammed . | . . . . . Walls Destroyed . | . . . . . Machines Disabled . | . . . . . Actions | -11 -10 -10 -7 -5 --------- Run | Yrd Mat Sub Scr Fac Total 2931 | 59 643 141 886 1202 Wait 228 | 1 65 14 . 148 Move 2312 | 47 510 122 841 792 Hop . | . . . . . Pick Up 56 | 4 11 . 19 22 Fast Attach 22 | 6 3 . 1 12 Attach 29 | . . . 1 28 Detach 10 | . 1 . 1 8 Swap 41 | . 5 2 2 32 Drop 51 | . 7 . 19 25 Fire 150 | 1 36 . 2 111 Melee 31 | . 5 3 . 23 Ram . | . . . . . Kick 1 | . . . . 1 Crush . | . . . . . Escape Stasis . | . . . . . Rewire . | . . . . . Trap . | . . . . . Miscellaneous . | . . . . . Route ------- -11/Scrapyard -10/Materials (discovered 5 exits: [*Mat x2] / [*Min x2] / [*Sub]) -10/Subcaves -7/Scraptown -5/Factory History --------- Turn | Location | Event 19 | -11/Scrapyard | Discovered new exit (range 15) 90 | -11/Scrapyard | Entered Materials 315 | -10/Materials | Build established: Mutant 527 | -10/Materials | Discovered new exit (range 13) 582 | -10/Materials | Discovered new exit (range 7) 698 | -10/Materials | Discovered new exit (range 14) 882 | -10/Materials | Discovered new exit (range 12) 971 | -10/Materials | Repaired Lgt. Treads 1108 | -10/Materials | Discovered new exit (range 7) 1119 | -10/Materials | Entered Subcaves 1120 | -10/Subcaves | Approached by a straggling Scientist 1239 | -10/Subcaves | Scientist uncovered a shortcut to Scraptown 1340 | -10/Subcaves | Entered Scraptown 1340 | -7/Scraptown | System corruption cleaned by C-Scrubber 1434 | -7/Scraptown | Heard Great Nut preacher, LISTEN AND RECITE! 1636 | -7/Scraptown | Visited Shadow of the Wyrm 1648 | -7/Scraptown | Visited TADAMA 1697 | -7/Scraptown | Visited SPCMW 1712 | -7/Scraptown | Visited Junk Repository 1760 | -7/Scraptown | Visited Fellowship of the Rings 1776 | -7/Scraptown | Visited The Evicted 1811 | -7/Scraptown | Visited Bundlers 1963 | -7/Scraptown | Visited UFD Registry 1963 | -7/Scraptown | Registered with UFD as "Dualbox" 2002 | -7/Scraptown | Visited Curators Association 2053 | -7/Scraptown | Visited Observation Area 2075 | -7/Scraptown | Visited LU-1G1's Boring Crew 2239 | -7/Scraptown | Visited Science Testing Area 2260 | -7/Scraptown | Visited Research Penetration Think Tank 2293 | -7/Scraptown | Visited Scrapoid Research Area 2343 | -7/Scraptown | Visited Chapter 10 2391 | -7/Scraptown | Visited A0-MCA Data Center 2401 | -7/Scraptown | Given an A- rating by A0-MCA 2407 | -7/Scraptown | Found A0-MCA's Component Scanner 2440 | -7/Scraptown | Visited Supply Room 2527 | -7/Scraptown | Visited Abandonware Association 2550 | -7/Scraptown | Learned abandonware demo "REPAIR.EXE" 2625 | -7/Scraptown | Met Optimus 2625 | -7/Scraptown | Accepted into 0bPrime 2701 | -7/Scraptown | Civil war broke out across Scraptown 2708 | -7/Scraptown | Discovered new exit (range 5) 2725 | -7/Scraptown | Entered Factory 2725 | -5/Factory | Evolved 10 slots: Power x1, Propulsion x4, Utility x4, Weapon x1 2867 | -5/Factory | Allied Derelicts emerged from ambush trap array 2962 | -5/Factory | Lost 3 allies 3013 | -5/Factory | Loaded intel: 8 recycling unit locations 3269 | -5/Factory | Build established: Scavenger-Tank 4162 | -5/Factory | Lost 7 parts (1p4n2w) 4225 | -5/Factory | First assault squad dispatched 4352 | -5/Factory | Core integrity fell below 50% 4354 | -5/Factory | Destroyed 8 combat bots 4385 | -5/Factory | Core integrity fell below 20% 4425 | -5/Factory | Destroyed by G-50 Soldier with Heavy Laser Last Messages --------------- 04413_ K-01 Serf collects debris. 04413_ Acquired Phase Shifter. 04416_ K-01 Serf collects debris. 04417_ Acquired 7 matter. 04418_ Acquired 3 matter. 04419_ K-01 Serf collects debris. 04420_ Acquired 8 matter. 04421_ Lgt. Angular Momentum Engine destroyed. 04421_ Thunder Leg destroyed. 04423_ Dropped Adv. Cooling System. 04423_ Dropped Imp. Force Field. 04423_ K-01 Serf collects debris. 04423_ M-28 Smith repairs G-50 Soldier. 04424_ Dropped Variable Charge Gun. 04424_ Dropped Lrg. Storage Unit. 04424_ Critical hit (Burn: +37). 04425_ System corrupted: Heat flow error (+189). 04425_ Dropped Hcp. Matter Pod. 04425_ Thunder Leg destroyed. 04425_ Dropped Phase Shifter. Map ----- +----------------------------------------------------+ | ??????????#"" # ???????????????????? | | ??????????#""" """" """" / ????????????????????? | | ??????????#"R """" """" #?????????????????????? | | ??????????#""" """" """" #?????????????????????? | | ??????????#"" """ " "" #????? ? #?????????? | | ??????????# ! #???? ?????????? | | ?????????################+##??? #????????????## | | ????????# ###??###?????## #### #?????????????? | | ???????# #?????????????# #?????????????? | | ???????##??????????????# + ????????? | | ???????????????????????# "" "" # ????????? | | ???????????????????????# "" "" #?????????????? | | ??????????????????????## """ """ #?????????????? | | ??????????????????????# """ """ #?????????????? | | ??????????????????????# """ " " #?????????????? | | ??????????????????????# #?????????????? | | ????????????????####### ] #?????????????? | | ???????????????""""" # #?????????????? | | ????????????? """""" # ####/######??????????? | | ????????????# """""" # # % % #??????????? | | ????????????# """""" !# # * k #??????????? | | ????????????# # # b ! #??????????? | | ????????????# # #m! % ! #??????????? | | ????????????# ! %+% gg ! "" %/#??????????? | | ????????????# # ! g#%"""" %[!#??????????? | | ????###/############"## !@!=#%[ % ==!#??????????? | | ??? ###"### [!%# % == #??????????? | | ??? ####+######??????????? | | ??? #??#%#???????????????? | | ??? % #??#"#???????????????? | | ??? p #?##%##??????????????? | | ???? * ### #??????????????? | | ???? =%t # #??????????????? | | ????? ###A R #??????????????? | | ????? """ ???#A ##?????????????? | | ???????"?????# ##?????????????? | | ?????????????# #?????????????? | | ?????????????# R ############### | | ?????????????# + [ # | | ?????????????# ? # ! # | | ?????????????# ? # # | | ?????????????# ??? # # | | ?????????????# ??? # # | | ???????????????????? # # | | ???????????????????? # # | | ???????????????????? # # | | ????????????????????? + # | | ?????????????????????""" # # | | ???????????????????????" # # | | ???????????????????????" ############### | +----------------------------------------------------+ Best States ------------- Heat Dissipation 102 Energy Generation 34 Energy Capacity 500 Matter Stores 500 Matter Capacity 500 Sight Range 16 Terrain Scan Density 10 Armor Coverage 450 Phase Shifting 5 Evasion (%) 70 Targeting Accuracy 5 Recoil Reduction 2 Offensive Hacking 12 Authchip Count 1 Item Schematics ----------------- None Robot Schematics ------------------ None Fabricated ------------ Nothing Repaired ---------- Lgt. Treads | 26% | -10/Materials Alien Tech Used ----------------- None Achievements -------------- None Challenges ------------ None Game ------ Seed SwordExpertClaw Manual? 0 Play Time 00:39:52 Cumulative 500.2 hours Start 2025.06.19 @ 19:26:11 End 2025.06.19 @ 20:04:13 Sessions 1 Manual Loads 0 Difficulty Rogue Special Mode None Game No. 346 Rogue 346 Adventurer 0 Explorer 0 Win Type - Total 46 Types 39/0/5/2/0/0/0/0/0/0 Lore% 83 Gallery% 79 Achievement% 72 Wizard Run 0 Options --------- Layout 1 ASCII 0 Keyboard 1 Movement Numpad Keybinds 0 Fullscreen 1 Font 32/SmallcapsGlow Map View 50x35 Zoom Use 0% Tactical HUD 1 Map Filters NONE Filters NONE Steam 1 RUN: a28e453b-46c3-4cb8-982b-9f6ce1249dd2